[Event "RUS-ch Blitz 2021"]
[Site "Sochi"]
[Date "2021.10.11"]
[Round "12.3"]
[White "Antipov, Mikhail Al."]
[Black "Sakaev, Konstantin"]
[Result "0-1"]
[ECO "B55"]
[WhiteElo "2619"]
[BlackElo "2603"]
[Annotator "ChessBase"]
[PlyCount "106"]
[EventDate "2021.10.11"]
[EventType "blitz"]
[EventCountry "RUS"]
[SourceTitle "playchess.com"]
[Source "ChessBase"]
[SourceQuality "1"]
[TimeControl "180+2"]

1. e4 {[%emt 0:00:00]} c5 {[%emt 0:00:04]} 2. Nf3 {[%emt 0:00:02]} d6 {[%emt 0:
00:00]} 3. d4 {[%emt 0:00:00]} cxd4 {[%emt 0:00:03]} 4. Nxd4 {[%emt 0:00:02]}
Nf6 {[%emt 0:00:00]} 5. Bc4 {[%emt 0:00:00]} e6 {[%emt 0:00:04]} 6. Nd2 {
[%emt 0:00:06]} Be7 {[%emt 0:00:15]} 7. O-O {[%emt 0:00:00]} O-O {[%emt 0:00:
02]} 8. Re1 {[%emt 0:00:00]} Nc6 {[%emt 0:00:00]} 9. Nxc6 {[%emt 0:00:07]} bxc6
{[%emt 0:00:02]} 10. Bd3 {[%emt 0:00:00]} e5 {[%emt 0:00:09]} 11. c4 {[%emt 0:
00:18]} Be6 {[%emt 0:00:07]} 12. b3 {[%emt 0:00:22]} d5 {[%emt 0:00:22]} 13.
Qc2 {[%emt 0:00:44]} d4 {[%emt 0:00:09]} 14. c5 {[%emt 0:00:24]} Qa5 {[%emt 0:
00:00]} 15. Bb2 {[%emt 0:00:13]} Qxc5 {[%emt 0:00:30]} 16. Qxc5 {[%emt 0:00:10]
} Bxc5 {[%emt 0:00:05]} 17. Rec1 {[%emt 0:00:00]} Nd7 {[%emt 0:00:00]} 18. Rc2
{[%emt 0:00:34]} Bb4 {[%emt 0:00:11]} 19. Rac1 {[%emt 0:00:01]} c5 {[%emt 0:00:
10]} 20. Nc4 {[%emt 0:00:03]} Rab8 {[%emt 0:00:14]} 21. Kf1 {[%emt 0:00:13]}
Rfd8 {[%emt 0:00:16]} 22. Ke2 {[%emt 0:00:05]} Kf8 {[%emt 0:00:00]} 23. a3 {
[%emt 0:00:11]} Bxc4 {[%emt 0:00:01]} 24. Bxc4 {[%emt 0:00:02]} Ba5 {[%emt 0:
00:02]} 25. Kd3 {[%emt 0:00:02]} Rb6 {[%emt 0:00:08]} 26. Rb1 {[%emt 0:00:11]}
Rdb8 {[%emt 0:00:02]} 27. Bc1 {[%emt 0:00:02]} Bc3 {[%emt 0:00:04]} 28. Bd2 {
[%emt 0:00:04]} Bxd2 {[%emt 0:00:05]} 29. Kxd2 {[%emt 0:00:00]} a5 {[%emt 0:00:
03]} 30. Rbc1 {[%emt 0:00:00]} Ke7 {[%emt 0:00:00]} 31. g3 {[%emt 0:00:06]} f6
{[%emt 0:00:00]} 32. h4 {[%emt 0:00:02]} Kd6 {[%emt 0:00:02]} 33. a4 {[%emt 0:
00:00]} Rxb3 {[%emt 0:00:12]} 34. Bxb3 {[%emt 0:00:04]} Rxb3 {[%emt 0:00:00]}
35. h5 {[%emt 0:00:02]} h6 {[%emt 0:00:13]} 36. Ke1 {[%emt 0:00:01]} Rb4 {
[%emt 0:00:02]} 37. f4 {[%emt 0:00:01]} Rxa4 {[%emt 0:00:03]} 38. Ke2 {[%emt 0:
00:04]} Rb4 {[%emt 0:00:08]} 39. Kf3 {[%emt 0:00:02]} a4 {[%emt 0:00:04]} 40.
Kg4 {[%emt 0:00:00]} Rb3 {[%emt 0:00:03]} 41. Rc4 {[%emt 0:00:03]} a3 {[%emt 0:
00:02]} 42. Ra4 {[%emt 0:00:00]} d3 {[%emt 0:00:08]} 43. Ra6+ {[%emt 0:00:05]}
Nb6 {[%emt 0:00:02]} 44. Ra1 {[%emt 0:00:01]} c4 {[%emt 0:00:10]} 45. Kf3 {
[%emt 0:00:03]} Kc5 {[%emt 0:00:03]} 46. Ke3 {[%emt 0:00:02]} Kb5 {[%emt 0:00:
06]} 47. R6xa3 {[%emt 0:00:01]} Rxa3 {[%emt 0:00:00]} 48. Rxa3 {[%emt 0:00:02]}
Na4 {[%emt 0:00:01]} 49. Kd2 {[%emt 0:00:02]} Kb4 {[%emt 0:00:00]} 50. Ra1 {
[%emt 0:00:02]} Nc5 {[%emt 0:00:03]} 51. Ra7 {[%emt 0:00:03]} c3+ {[%emt 0:00:
01]} 52. Ke3 {[%emt 0:00:01]} c2 {[%emt 0:00:03]} 53. Kd2 {[%emt 0:00:03]} Nb3+
{[%emt 0:00:00]} 0-1

[Event "RUS-ch Blitz 2021"]
[Site "Sochi"]
[Date "2021.10.11"]
[Round "12.4"]
[White "Afanasiev, Nikita"]
[Black "Sarana, Alexey"]
[Result "0-1"]
[ECO "D02"]
[WhiteElo "2560"]
[BlackElo "2649"]
[Annotator "ChessBase"]
[PlyCount "30"]
[EventDate "2021.10.11"]
[EventType "blitz"]
[EventCountry "RUS"]
[SourceTitle "playchess.com"]
[Source "ChessBase"]
[SourceQuality "1"]
[TimeControl "180+2"]

1. d4 {[%emt 0:00:00]} Nf6 {[%emt 0:00:00]} 2. Nf3 {[%emt 0:00:00]} d5 {
[%emt 0:00:00]} 3. Bf4 {[%emt 0:00:12]} c5 {[%emt 0:00:01]} 4. e3 {[%emt 0:00:
00]} Nc6 {[%emt 0:00:00]} 5. Nbd2 {[%emt 0:00:00]} Qb6 {[%emt 0:00:00]} 6. dxc5
{[%emt 0:00:08]} Qxb2 {[%emt 0:00:03]} 7. Rb1 {[%emt 0:00:08]} Qa3 {[%emt 0:00:
01]} 8. Nd4 {[%emt 0:00:29]} e5 {[%emt 0:01:03]} 9. Nb5 {[%emt 0:01:05]} Qa5 {
[%emt 0:00:00]} 10. Bg5 {[%emt 0:00:40]} Ne4 {[%emt 0:00:03]} 11. Bh4 {[%emt 0:
00:20]} Bxc5 {[%emt 0:00:06]} 12. c3 {[%emt 0:00:05]} Nxc3 {[%emt 0:01:04]} 13.
Nb3 {[%emt 0:00:11]} Qb4 {[%emt 0:00:00]} 14. Nxc5 {[%emt 0:00:10]} Nxb1+ {
[%emt 0:00:00]} 15. Ke2 {[%emt 0:00:01]} Qxb5+ {[%emt 0:00:02]} 0-1

[Event "RUS-ch Blitz 2021"]
[Site "Sochi"]
[Date "2021.10.11"]
[Round "12.5"]
[White "Petrov, Nikita"]
[Black "Lysyj, Igor"]
[Result "1/2-1/2"]
[ECO "D41"]
[WhiteElo "2539"]
[BlackElo "2603"]
[Annotator "ChessBase"]
[PlyCount "38"]
[EventDate "2021.10.11"]
[EventType "blitz"]
[EventCountry "RUS"]
[SourceTitle "playchess.com"]
[Source "ChessBase"]
[SourceQuality "1"]
[TimeControl "180+2"]

1. d4 {[%emt 0:00:00]} Nf6 {[%emt 0:00:00]} 2. c4 {[%emt 0:00:00]} e6 {[%emt 0:
00:00]} 3. Nf3 {[%emt 0:00:12]} d5 {[%emt 0:00:01]} 4. Nc3 {[%emt 0:00:00]} c5
{[%emt 0:00:00]} 5. cxd5 {[%emt 0:00:00]} Nxd5 {[%emt 0:00:07]} 6. g3 {[%emt 0:
00:11]} Nxc3 {[%emt 0:00:05]} 7. bxc3 {[%emt 0:00:00]} cxd4 {[%emt 0:00:08]} 8.
cxd4 {[%emt 0:00:01]} Bb4+ {[%emt 0:00:00]} 9. Bd2 {[%emt 0:00:00]} Bxd2+ {
[%emt 0:00:00]} 10. Qxd2 {[%emt 0:00:00]} b6 {[%emt 0:00:00]} 11. Bg2 {[%emt 0:
00:13]} Bb7 {[%emt 0:00:00]} 12. O-O {[%emt 0:00:00]} O-O {[%emt 0:00:00]} 13.
Rfd1 {[%emt 0:00:05]} Nc6 {[%emt 0:00:17]} 14. Ne5 {[%emt 0:00:06]} Rc8 {
[%emt 0:00:00]} 15. Rac1 {[%emt 0:00:20]} Qd6 {[%emt 0:00:15]} 16. Nxc6 {
[%emt 0:00:42]} Bxc6 {[%emt 0:00:00]} 17. Bxc6 {[%emt 0:00:00]} Rxc6 {[%emt 0:
00:00]} 18. Rxc6 {[%emt 0:00:00]} Qxc6 {[%emt 0:00:00]} 19. d5 {[%emt 0:00:00]}
exd5 {[%emt 0:00:05]} 1/2-1/2

[Event "RUS-ch Blitz 2021"]
[Site "Sochi"]
[Date "2021.10.11"]
[Round "12.6"]
[White "Alekseev, Evgeny"]
[Black "Kokarev, Dmitry"]
[Result "1-0"]
[ECO "A38"]
[WhiteElo "2602"]
[BlackElo "2579"]
[Annotator "ChessBase"]
[PlyCount "133"]
[EventDate "2021.10.11"]
[EventType "blitz"]
[EventCountry "RUS"]
[SourceTitle "playchess.com"]
[Source "ChessBase"]
[SourceQuality "1"]
[TimeControl "180+2"]

1. Nf3 {[%emt 0:00:04]} Nf6 {[%emt 0:00:00]} 2. c4 {[%emt 0:00:02]} g6 {
[%emt 0:00:01]} 3. Nc3 {[%emt 0:00:00]} Bg7 {[%emt 0:00:00]} 4. g3 {[%emt 0:00:
04]} O-O {[%emt 0:00:04]} 5. Bg2 {[%emt 0:00:00]} c5 {[%emt 0:00:06]} 6. O-O {
[%emt 0:00:09]} Nc6 {[%emt 0:00:00]} 7. d3 {[%emt 0:00:02]} d6 {[%emt 0:00:05]}
8. Qd2 {[%emt 0:00:05]} Qd7 {[%emt 0:00:02]} 9. b3 {[%emt 0:00:00]} b6 {
[%emt 0:00:03]} 10. Bb2 {[%emt 0:00:02]} Bb7 {[%emt 0:00:00]} 11. e3 {[%emt 0:
00:00]} Rfd8 {[%emt 0:00:15]} 12. Rfd1 {[%emt 0:00:16]} Ne5 {[%emt 0:00:04]}
13. Nxe5 {[%emt 0:00:12]} dxe5 {[%emt 0:00:00]} 14. Qe2 {[%emt 0:00:07]} Bxg2 {
[%emt 0:00:16]} 15. Kxg2 {[%emt 0:00:00]} Qc6+ {[%emt 0:00:16]} 16. Qf3 {
[%emt 0:00:03]} Rac8 {[%emt 0:00:06]} 17. Qxc6 {[%emt 0:00:07]} Rxc6 {[%emt 0:
00:00]} 18. Kf3 {[%emt 0:00:02]} h5 {[%emt 0:00:20]} 19. Ke2 {[%emt 0:00:05]}
Ne8 {[%emt 0:00:12]} 20. Rab1 {[%emt 0:00:13]} Rcd6 {[%emt 0:00:03]} 21. a3 {
[%emt 0:00:07]} Nc7 {[%emt 0:00:00]} 22. b4 {[%emt 0:00:06]} Ne6 {[%emt 0:00:
07]} 23. Nd5 {[%emt 0:00:08]} Kf8 {[%emt 0:00:08]} 24. Bc3 {[%emt 0:00:07]}
R6d7 {[%emt 0:00:05]} 25. a4 {[%emt 0:00:14]} Rc8 {[%emt 0:00:16]} 26. Be1 {
[%emt 0:00:12]} cxb4 {[%emt 0:00:09]} 27. Bxb4 {[%emt 0:00:06]} f5 {[%emt 0:00:
08]} 28. a5 {[%emt 0:00:08]} b5 {[%emt 0:00:02]} 29. Rbc1 {[%emt 0:00:14]} bxc4
{[%emt 0:00:07]} 30. Rxc4 {[%emt 0:00:20]} Rb8 {[%emt 0:00:03]} 31. Nc3 {
[%emt 0:00:20]} Kf7 {[%emt 0:00:05]} 32. a6 {[%emt 0:00:04]} Rb6 {[%emt 0:00:
01]} 33. Ra1 {[%emt 0:00:03]} Nc7 {[%emt 0:00:10]} 34. Ra5 {[%emt 0:00:10]}
Nxa6 {[%emt 0:00:11]} 35. Ba3 {[%emt 0:00:00]} Nb8 {[%emt 0:00:14]} 36. Rac5 {
[%emt 0:00:01]} Rb3 {[%emt 0:00:04]} 37. Ra5 {[%emt 0:00:06]} Rbb7 {[%emt 0:00:
06]} 38. Rac5 {[%emt 0:00:06]} Na6 {[%emt 0:00:07]} 39. Ra5 {[%emt 0:00:00]}
Nc7 {[%emt 0:00:00]} 40. Na4 {[%emt 0:00:04]} Ne6 {[%emt 0:00:06]} 41. Nc3 {
[%emt 0:00:00]} Rdc7 {[%emt 0:00:04]} 42. Nd5 {[%emt 0:00:03]} Rd7 {[%emt 0:00:
02]} 43. Nc3 {[%emt 0:00:04]} Rdc7 {[%emt 0:00:03]} 44. Nd5 {[%emt 0:00:00]}
Rd7 {[%emt 0:00:01]} 45. Nc3 {[%emt 0:00:01]} Rb3 {[%emt 0:00:00]} 46. Ra6 {
[%emt 0:00:10]} Bf6 {[%emt 0:00:06]} 47. Ra5 {[%emt 0:00:00]} Nd8 {[%emt 0:00:
02]} 48. h4 {[%emt 0:00:01]} Nb7 {[%emt 0:00:02]} 49. Rxa7 {[%emt 0:00:03]} Ke8
{[%emt 0:00:09]} 50. Rc8+ {[%emt 0:00:04]} Kf7 {[%emt 0:00:02]} 51. Rc4 {
[%emt 0:00:01]} Ke8 {[%emt 0:00:00]} 52. Ra6 {[%emt 0:00:05]} Nd8 {[%emt 0:00:
01]} 53. Rc8 {[%emt 0:00:02]} Kf7 {[%emt 0:00:02]} 54. e4 {[%emt 0:00:00]} Ne6
{[%emt 0:00:01]} 55. Nd5 {[%emt 0:00:06]} Nd4+ {[%emt 0:00:00]} 56. Kf1 {
[%emt 0:00:00]} Rxd3 {[%emt 0:00:00]} 57. Nxf6 {[%emt 0:00:00]} exf6 {[%emt 0:
00:07]} 58. Rf8+ {[%emt 0:00:00]} Kg7 {[%emt 0:00:00]} 59. Rfxf6 {[%emt 0:00:
02]} fxe4 {[%emt 0:00:00]} 60. Rxg6+ {[%emt 0:00:02]} Kh7 {[%emt 0:00:01]} 61.
Rh6+ {[%emt 0:00:01]} Kg7 {[%emt 0:00:01]} 62. Rag6+ {[%emt 0:00:01]} Kf7 {
[%emt 0:00:01]} 63. Rf6+ {[%emt 0:00:01]} Kg7 {[%emt 0:00:01]} 64. Bf8+ {
[%emt 0:00:03]} Kg8 {[%emt 0:00:00]} 65. Rhg6+ {[%emt 0:00:03]} Kh7 {[%emt 0:
00:00]} 66. Rg5 {[%emt 0:00:02]} Nf3 {[%emt 0:00:02]} 67. Rh6# {[%emt 0:00:02]}
1-0

[Event "RUS-ch Blitz 2021"]
[Site "Sochi"]
[Date "2021.10.11"]
[Round "12.7"]
[White "Timofeev, Artyom"]
[Black "Riazantsev, Alexander"]
[Result "1/2-1/2"]
[ECO "E14"]
[WhiteElo "2586"]
[BlackElo "2634"]
[Annotator "ChessBase"]
[PlyCount "97"]
[EventDate "2021.10.11"]
[EventType "blitz"]
[EventCountry "RUS"]
[SourceTitle "playchess.com"]
[Source "ChessBase"]
[SourceQuality "1"]
[TimeControl "180+2"]

1. c4 {[%emt 0:00:04]} e6 {[%emt 0:00:00]} 2. Nf3 {[%emt 0:00:03]} d5 {[%emt 0:
00:01]} 3. b3 {[%emt 0:00:00]} Nf6 {[%emt 0:00:07]} 4. Bb2 {[%emt 0:00:01]} Be7
{[%emt 0:00:02]} 5. e3 {[%emt 0:00:00]} b6 {[%emt 0:00:03]} 6. Be2 {[%emt 0:00:
08]} Bb7 {[%emt 0:00:00]} 7. O-O {[%emt 0:00:00]} O-O {[%emt 0:00:05]} 8. Nc3 {
[%emt 0:00:08]} Nbd7 {[%emt 0:00:06]} 9. Rc1 {[%emt 0:00:00]} c5 {[%emt 0:00:
00]} 10. cxd5 {[%emt 0:00:15]} Nxd5 {[%emt 0:00:00]} 11. Nxd5 {[%emt 0:00:04]}
Bxd5 {[%emt 0:00:05]} 12. d4 {[%emt 0:00:00]} a5 {[%emt 0:00:15]} 13. Bb5 {
[%emt 0:00:08]} Ra7 {[%emt 0:00:49]} 14. Nd2 {[%emt 0:00:31]} Qa8 {[%emt 0:00:
36]} 15. f3 {[%emt 0:00:02]} cxd4 {[%emt 0:00:17]} 16. Bxd4 {[%emt 0:00:02]}
Ba3 {[%emt 0:00:00]} 17. Rc2 {[%emt 0:00:06]} Bc5 {[%emt 0:00:07]} 18. Bxc5 {
[%emt 0:00:07]} Nxc5 {[%emt 0:00:00]} 19. Qe2 {[%emt 0:00:03]} Rc7 {[%emt 0:00:
08]} 20. Rfc1 {[%emt 0:00:01]} Rfc8 {[%emt 0:00:09]} 21. e4 {[%emt 0:00:22]}
Bc6 {[%emt 0:00:00]} 22. Bc4 {[%emt 0:00:03]} Qb7 {[%emt 0:00:12]} 23. Qe3 {
[%emt 0:00:00]} Rd8 {[%emt 0:00:02]} 24. Nf1 {[%emt 0:00:06]} Rcd7 {[%emt 0:00:
07]} 25. Rd2 {[%emt 0:00:05]} Rxd2 {[%emt 0:00:00]} 26. Nxd2 {[%emt 0:00:00]}
Qd7 {[%emt 0:00:00]} 27. Nf1 {[%emt 0:00:00]} Bb5 {[%emt 0:00:06]} 28. Bxb5 {
[%emt 0:00:21]} Qxb5 {[%emt 0:00:00]} 29. h3 {[%emt 0:00:08]} h6 {[%emt 0:00:
01]} 30. Ng3 {[%emt 0:00:11]} Qb4 {[%emt 0:00:07]} 31. Rc2 {[%emt 0:00:20]}
Rd1+ {[%emt 0:00:00]} 32. Kh2 {[%emt 0:00:00]} Qd4 {[%emt 0:00:26]} 33. Qxd4 {
[%emt 0:00:00]} Rxd4 {[%emt 0:00:00]} 34. Ne2 {[%emt 0:00:03]} Rd3 {[%emt 0:00:
00]} 35. Kg1 {[%emt 0:00:03]} Kf8 {[%emt 0:00:01]} 36. Kf2 {[%emt 0:00:00]} Ke7
{[%emt 0:00:00]} 37. Nc3 {[%emt 0:00:02]} g5 {[%emt 0:00:08]} 38. Ke2 {[%emt 0:
00:01]} Rd7 {[%emt 0:00:02]} 39. Nb5 {[%emt 0:00:05]} f5 {[%emt 0:00:04]} 40.
exf5 {[%emt 0:00:05]} exf5 {[%emt 0:00:00]} 41. Rc4 {[%emt 0:00:02]} Kf6 {
[%emt 0:00:03]} 42. h4 {[%emt 0:00:08]} Re7+ {[%emt 0:00:00]} 43. Kd2 {[%emt 0:
00:03]} f4 {[%emt 0:00:05]} 44. hxg5+ {[%emt 0:00:00]} hxg5 {[%emt 0:00:02]}
45. Nc3 {[%emt 0:00:00]} Rd7+ {[%emt 0:00:00]} 46. Ke2 {[%emt 0:00:02]} Re7+ {
[%emt 0:00:03]} 47. Kd2 {[%emt 0:00:00]} Rd7+ {[%emt 0:00:00]} 48. Ke2 {
[%emt 0:00:00]} Re7+ {[%emt 0:00:00]} 49. Kd2 {[%emt 0:00:04]} 1/2-1/2

[Event "RUS-ch Blitz 2021"]
[Site "Sochi"]
[Date "2021.10.11"]
[Round "12.8"]
[White "Bocharov, Dmitry"]
[Black "Kobalia, Mikhail"]
[Result "0-1"]
[ECO "A11"]
[WhiteElo "2517"]
[BlackElo "2600"]
[Annotator "ChessBase"]
[PlyCount "52"]
[EventDate "2021.10.11"]
[EventType "blitz"]
[EventCountry "RUS"]
[SourceTitle "playchess.com"]
[Source "ChessBase"]
[SourceQuality "1"]
[TimeControl "180+2"]

1. Nf3 {[%emt 0:00:00]} d5 {[%emt 0:00:00]} 2. e3 {[%emt 0:00:00]} Nf6 {
[%emt 0:00:04]} 3. c4 {[%emt 0:00:00]} c6 {[%emt 0:00:00]} 4. Nc3 {[%emt 0:00:
05]} e6 {[%emt 0:00:00]} 5. b3 {[%emt 0:00:05]} Bd6 {[%emt 0:00:00]} 6. Bb2 {
[%emt 0:00:00]} O-O {[%emt 0:00:04]} 7. Be2 {[%emt 0:00:00]} e5 {[%emt 0:00:05]
} 8. cxd5 {[%emt 0:00:04]} cxd5 {[%emt 0:00:00]} 9. Nb5 {[%emt 0:00:00]} Nc6 {
[%emt 0:00:04]} 10. Nxd6 {[%emt 0:00:04]} Qxd6 {[%emt 0:00:05]} 11. d4 {
[%emt 0:00:13]} e4 {[%emt 0:00:16]} 12. Ne5 {[%emt 0:00:09]} Nd7 {[%emt 0:00:
00]} 13. Nxc6 {[%emt 0:00:13]} bxc6 {[%emt 0:00:04]} 14. O-O {[%emt 0:00:00]}
f5 {[%emt 0:00:08]} 15. Rc1 {[%emt 0:00:30]} f4 {[%emt 0:00:00]} 16. exf4 {
[%emt 0:00:09]} Rxf4 {[%emt 0:00:04]} 17. Qd2 {[%emt 0:00:04]} Rf6 {[%emt 0:00:
13]} 18. Qa5 {[%emt 0:00:26]} Rh6 {[%emt 0:00:59]} 19. Qd8+ {[%emt 0:00:16]}
Kf7 {[%emt 0:00:00]} 20. g3 {[%emt 0:00:21]} Ba6 {[%emt 0:00:17]} 21. Qxa8 {
[%emt 0:00:18]} Bxe2 {[%emt 0:00:00]} 22. Qxa7 {[%emt 0:00:15]} Bf3 {[%emt 0:
00:16]} 23. Rc3 {[%emt 0:00:08]} Rxh2 {[%emt 0:00:04]} 24. Rxf3+ {[%emt 0:00:
03]} exf3 {[%emt 0:00:00]} 25. Kxh2 {[%emt 0:00:04]} Qh6+ {[%emt 0:00:00]} 26.
Kg1 {[%emt 0:00:08]} Qh3 {[%emt 0:00:00]} 0-1

[Event "RUS-ch Blitz 2021"]
[Site "Sochi"]
[Date "2021.10.11"]
[Round "12.9"]
[White "Khanin, Semen"]
[Black "Kezin, Roman"]
[Result "1/2-1/2"]
[ECO "B78"]
[WhiteElo "2521"]
[BlackElo "2492"]
[Annotator "ChessBase"]
[PlyCount "111"]
[EventDate "2021.10.11"]
[EventType "blitz"]
[EventCountry "RUS"]
[SourceTitle "playchess.com"]
[Source "ChessBase"]
[SourceQuality "1"]
[TimeControl "180+2"]

1. e4 {[%emt 0:00:00]} c5 {[%emt 0:00:00]} 2. Nf3 {[%emt 0:00:05]} d6 {[%emt 0:
00:02]} 3. d4 {[%emt 0:00:00]} cxd4 {[%emt 0:00:00]} 4. Nxd4 {[%emt 0:00:03]}
Nf6 {[%emt 0:00:00]} 5. Nc3 {[%emt 0:00:00]} g6 {[%emt 0:00:00]} 6. Be3 {
[%emt 0:00:04]} Bg7 {[%emt 0:00:13]} 7. f3 {[%emt 0:00:02]} O-O {[%emt 0:00:11]
} 8. Qd2 {[%emt 0:00:02]} Nc6 {[%emt 0:00:00]} 9. Bc4 {[%emt 0:00:00]} Bd7 {
[%emt 0:00:06]} 10. O-O-O {[%emt 0:00:00]} Rc8 {[%emt 0:00:03]} 11. Bb3 {
[%emt 0:00:01]} Nxd4 {[%emt 0:00:00]} 12. Bxd4 {[%emt 0:00:06]} b5 {[%emt 0:00:
00]} 13. Nd5 {[%emt 0:00:20]} Nxd5 {[%emt 0:00:04]} 14. exd5 {[%emt 0:00:05]}
a5 {[%emt 0:00:15]} 15. Bxg7 {[%emt 0:00:05]} Kxg7 {[%emt 0:00:00]} 16. Qd4+ {
[%emt 0:00:04]} Kg8 {[%emt 0:00:00]} 17. a3 {[%emt 0:00:02]} Qc7 {[%emt 0:00:
35]} 18. Rd2 {[%emt 0:00:31]} b4 {[%emt 0:00:00]} 19. axb4 {[%emt 0:00:08]}
axb4 {[%emt 0:00:01]} 20. Re2 {[%emt 0:00:03]} Bb5 {[%emt 0:00:56]} 21. Re3 {
[%emt 0:00:00]} Bc4 {[%emt 0:00:56]} 22. Bxc4 {[%emt 0:00:16]} Qxc4 {[%emt 0:
00:00]} 23. Qxc4 {[%emt 0:00:08]} Rxc4 {[%emt 0:00:02]} 24. b3 {[%emt 0:00:11]}
Rc5 {[%emt 0:00:13]} 25. Rxe7 {[%emt 0:00:12]} Ra8 {[%emt 0:00:05]} 26. Rhe1 {
[%emt 0:00:50]} Ra1+ {[%emt 0:00:09]} 27. Kb2 {[%emt 0:00:11]} Rxe1 {[%emt 0:
00:00]} 28. Rxe1 {[%emt 0:00:00]} Rxd5 {[%emt 0:00:00]} 29. Re4 {[%emt 0:00:00]
} Rd2 {[%emt 0:00:07]} 30. Rxb4 {[%emt 0:00:02]} Rxg2 {[%emt 0:00:00]} 31. Rb8+
{[%emt 0:00:16]} Kg7 {[%emt 0:00:00]} 32. b4 {[%emt 0:00:00]} Rxh2 {[%emt 0:00:
03]} 33. b5 {[%emt 0:00:00]} Rh5 {[%emt 0:00:02]} 34. c4 {[%emt 0:00:02]} Rc5 {
[%emt 0:00:02]} 35. Kb3 {[%emt 0:00:08]} d5 {[%emt 0:00:01]} 36. cxd5 {[%emt 0:
00:04]} Rxd5 {[%emt 0:00:01]} 37. Kc4 {[%emt 0:00:04]} Rd1 {[%emt 0:00:00]} 38.
b6 {[%emt 0:00:01]} Rb1 {[%emt 0:00:07]} 39. Kc5 {[%emt 0:00:00]} h5 {[%emt 0:
00:00]} 40. Rd8 {[%emt 0:00:03]} Rc1+ {[%emt 0:00:05]} 41. Kb5 {[%emt 0:00:03]}
Rb1+ {[%emt 0:00:00]} 42. Kc6 {[%emt 0:00:01]} h4 {[%emt 0:00:03]} 43. Rd4 {
[%emt 0:00:04]} g5 {[%emt 0:00:01]} 44. Rd5 {[%emt 0:00:00]} h3 {[%emt 0:00:04]
} 45. Rxg5+ {[%emt 0:00:04]} Kf6 {[%emt 0:00:03]} 46. Rh5 {[%emt 0:00:00]} Rc1+
{[%emt 0:00:02]} 47. Kd7 {[%emt 0:00:04]} Rd1+ {[%emt 0:00:02]} 48. Kc8 {
[%emt 0:00:00]} Rc1+ {[%emt 0:00:00]} 49. Kb8 {[%emt 0:00:05]} Rh1 {[%emt 0:00:
00]} 50. b7 {[%emt 0:00:03]} h2 {[%emt 0:00:01]} 51. Kc7 {[%emt 0:00:09]} Rc1+
{[%emt 0:00:01]} 52. Kd6 {[%emt 0:00:00]} Rb1 {[%emt 0:00:03]} 53. Kc6 {
[%emt 0:00:04]} Rc1+ {[%emt 0:00:02]} 54. Kd6 {[%emt 0:00:00]} Rb1 {[%emt 0:00:
01]} 55. Kc6 {[%emt 0:00:02]} Rc1+ {[%emt 0:00:01]} 56. Kd6 {[%emt 0:00:01]}
1/2-1/2

[Event "RUS-ch Blitz 2021"]
[Site "Sochi"]
[Date "2021.10.11"]
[Round "12.10"]
[White "Rozum, Ivan"]
[Black "Moiseenko, Vadim"]
[Result "1-0"]
[ECO "A01"]
[WhiteElo "2529"]
[BlackElo "2542"]
[Annotator "ChessBase"]
[PlyCount "57"]
[EventDate "2021.10.11"]
[EventType "blitz"]
[EventCountry "RUS"]
[SourceTitle "playchess.com"]
[Source "ChessBase"]
[SourceQuality "1"]
[TimeControl "180+2"]

1. b3 {[%emt 0:00:00]} d6 {[%emt 0:00:04]} 2. Bb2 {[%emt 0:00:05]} e5 {[%emt 0:
00:00]} 3. c4 {[%emt 0:00:00]} f5 {[%emt 0:00:08]} 4. d4 {[%emt 0:00:07]} Nc6 {
[%emt 0:00:06]} 5. Nf3 {[%emt 0:00:13]} e4 {[%emt 0:00:09]} 6. d5 {[%emt 0:00:
03]} Nce7 {[%emt 0:00:36]} 7. Nd4 {[%emt 0:00:03]} Nf6 {[%emt 0:00:07]} 8. Nc3
{[%emt 0:00:00]} g6 {[%emt 0:00:07]} 9. e3 {[%emt 0:00:08]} h5 {[%emt 0:00:07]}
10. Be2 {[%emt 0:00:04]} Bh6 {[%emt 0:00:00]} 11. Qd2 {[%emt 0:00:10]} O-O {
[%emt 0:00:05]} 12. O-O-O {[%emt 0:00:03]} Ng4 {[%emt 0:00:14]} 13. Bxg4 {
[%emt 0:00:25]} hxg4 {[%emt 0:00:08]} 14. h3 {[%emt 0:00:13]} gxh3 {[%emt 0:00:
00]} 15. Rxh3 {[%emt 0:00:02]} Bg7 {[%emt 0:00:00]} 16. Rdh1 {[%emt 0:00:04]}
Bd7 {[%emt 0:00:52]} 17. Ne6 {[%emt 0:00:10]} Bxe6 {[%emt 0:00:00]} 18. dxe6 {
[%emt 0:00:02]} Rf6 {[%emt 0:00:21]} 19. Nd5 {[%emt 0:00:05]} Nxd5 {[%emt 0:00:
05]} 20. cxd5 {[%emt 0:00:36]} c5 {[%emt 0:00:08]} 21. Rh7 {[%emt 0:00:08]} Rc8
{[%emt 0:00:12]} 22. Qc3 {[%emt 0:00:12]} b5 {[%emt 0:00:02]} 23. Kb1 {[%emt 0:
00:10]} a5 {[%emt 0:00:09]} 24. f3 {[%emt 0:00:00]} exf3 {[%emt 0:00:05]} 25.
gxf3 {[%emt 0:00:00]} c4 {[%emt 0:00:02]} 26. bxc4 {[%emt 0:00:19]} Rxc4 {
[%emt 0:00:03]} 27. Qd2 {[%emt 0:00:09]} b4 {[%emt 0:00:01]} 28. Qh2 {[%emt 0:
00:05]} Rc7 {[%emt 0:00:04]} 29. Rh8+ {[%emt 0:00:00]} 1-0